Cogmind - Beta 16 @@@ ROGUE MODE // 2025.12.07 @ 14:58:47 Player: The Overplayer Result: Destroyed by X-67 Chaingunner with Heavy Machine Gun Performance ------------- Evolutions (4) 2000 Regions Visited (10) 2000 Robots Destroyed (30) 150 Value Destroyed (998) 998 Prototype IDs (26) 520 Alien Tech Used (0) 0 Bonus (1228) 1228 TOTAL SCORE: 6896 Bonus ------- Follower Combat Kills 28 Entered Garrisons 200 Used RIF Installer 500 Entered DSFs 500 Cogmind --------- Core Integrity 0/850 Matter 289/300 Energy 100/100 System Corruption 2% Temperature Cool (0) Movement Core (50) Location -6/Factory Parts ------- > --- POWER (1) -------- (None) > --- PROPULSION (4) --- (None) > --- UTILITY (6) ------ (None) > --- WEAPON (4) ------- (None) > --- INVENTORY (5) ---- Improved Deuterium Engine Armored Leg Improved Cooling System Advanced EMP Blaster Mining Laser Peak State ------------ > --- POWER ------------ Fission Core > --- PROPULSION ------- Light Armored Exoskeleton Light Armored Exoskeleton > --- UTILITY ---------- Scrap Suit Advanced Sensor Array IFF Parser Authchip [Propulsion] Authchip [Weapon] > --- WEAPON ----------- Heavy Machine Gun Heavy Machine Gun Heavy Rocket Launcher Heavy Rocket Launcher > --- INVENTORY -------- Improved Deuterium Engine Armored Leg Advanced EMP Blaster Mining Laser [Rating: 66] Favorites ----------- Power Ion Engine Engine Ion Engine Power Core Fission Core Propulsion Aluminum Leg Leg Aluminum Leg Flight Unit Flight Unit Utility Improved Heat Sink Device Improved Heat Sink Storage Small Storage Unit Processor Visual Processing Unit Hackware Hacking Suite Protection Insulated Plating Weapon Longsword +1 Energy Gun Medium Laser Ballistic Gun Heavy Machine Gun Ballistic Cannon Battle Cannon Launcher Heavy Rocket Launcher Slashing Weapon Longsword +1 Build | -11 -10 -10 -10 -9 -8 -8 -8 -7 -7 -6 ------- Run | Yrd Mat Min Exi Min Mat Sto Gar Fac DSF Fac Slots Evolved 8 | . . . . . 4 . . 2 . 2 Power . | . . . . . . . . . . . Propulsion 2 | . . . . . 2 . . . . . Utility 4 | . . . . . 2 . . 1 . 1 Weapon 2 | . . . . . . . . 1 . 1 Parts Attached 52 | 6 1 7 2 6 12 1 2 . 7 8 Power 10 | 1 . 1 . 2 3 . . . 1 2 Engine 8 | 1 . 1 . 2 2 . . . 1 1 Core 2 | . . . . . 1 . . . . 1 Reactor . | . . . . . . . . . . . Propulsion 17 | 2 . 2 . 3 4 1 2 . 2 1 Treads . | . . . . . . . . . . . Leg 13 | 2 . 2 . 1 3 1 2 . 2 . Wheel . | . . . . . . . . . . . Hover . | . . . . . . . . . . . Flight 4 | . . . . 2 1 . . . . 1 Utility 16 | 1 1 2 . 1 4 . . . 4 3 Device 7 | . 1 2 . . 1 . . . . 3 Storage 1 | 1 . . . . . . . . . . Processor 1 | . . . . . 1 . . . . . Hackware 5 | . . . . . 1 . . . 4 . Protection 2 | . . . . 1 1 . . . . . Artifact . | . . . . . . . . . . . Weapon 9 | 2 . 2 2 . 1 . . . . 2 Energy Gun 2 | 2 . . . . . . . . . . Energy Cannon . | . . . . . . . . . . . Ballistic Gun 1 | . . 1 . . . . . . . . Ballistic Cannon 1 | . . 1 . . . . . . . . Launcher 3 | . . . . . 1 . . . . 2 Special Weapon . | . . . . . . . . . . . Impact Weapon . | . . . . . . . . . . . Slashing Weapon 2 | . . . 2 . . . . . . . Piercing Weapon . | . . . . . . . . . . . Special Melee Weapon . | . . . . . . . . . . . Unidentified Prototypes 3 | . . . . . 3 . . . . . Parts Lost 27 | . . 4 . 2 1 1 1 . 12 6 Power 2 | . . 1 . . . . . . . 1 Propulsion 11 | . . 1 . 2 1 1 1 . 4 1 Utility 9 | . . 1 . . . . . . 6 2 Weapon 5 | . . 1 . . . . . . 2 2 Highest Loss Streak 12 | . . 2 . 1 1 1 1 . 12 3 To Critical Strikes . | . . . . . . . . . . . Average Backups 5 | . 3 6 7 4 3 4 4 4 4 4 Power . | . 1 . . . . 1 1 1 1 . Propulsion . | . . 1 2 . . . . . . . Utility 1 | . . 2 3 1 1 1 1 1 1 . Weapon 1 | . 1 1 2 2 1 2 2 2 2 2 Tool/Special . | . . . . . . . . . . . Unused Backups 7 | . . . . 3 . . . . 1 3 Power 1 | . . . . . . . . . 1 . Propulsion 1 | . . . . . . . . . . 1 Utility 1 | . . . . . . . . . . 1 Weapon 4 | . . . . 3 . . . . . 1 Tool/Special . | . . . . . . . . . . . Average Slot Usage (%) 83 | . 98 89 84 88 84 97 99 84 60 59 Engine 5 | . 14 7 . 12 7 9 9 7 4 1 Leg 24 | . 28 27 28 17 24 33 35 30 21 12 Flight 1 | . . . . 8 3 . . . . . Device 12 | . 13 13 14 14 9 9 9 7 4 12 Storage 7 | . 14 14 14 6 . . . . . . Processor 1 | . . . . . 7 9 9 7 3 . Hackware 4 | . . . . . 8 9 9 7 12 12 Protection 2 | . . . . 7 8 9 9 7 3 . Energy Gun 6 | . 28 19 4 . . . . . . . Ballistic Gun 2 | . . 5 . . . . . . . 8 Ballistic Cannon 2 | . . 1 6 . . . . . . . Slashing Weapon 10 | . . . 16 20 13 18 18 15 8 . Peak Build Rating 66 | 6 7 10 19 20 35 37 37 35 42 66 Average Rating 22 | 4 6 8 15 17 27 35 35 35 29 51 On Entrance 20 | . 6 7 10 19 16 35 37 35 35 25 Avg Prop Armor Cover (%) 5 | . . . . 5 5 . . . . . Naked Turns 13 | . . . . . . . . . . 13 Heaviest Build 40 | 13 14 14 12 15 18 18 18 18 20 40 Greatest Support 60 | 20 20 20 20 20 50 55 55 50 60 60 Greatest Overweight (x) 3 | 1 . 1 . 1 . . . . 3 . Average Overweight (x) . | . . . . . . . . . . . Largest Inventory Capacity 8 | 8 8 8 8 8 5 5 5 5 5 5 Average Capacity 6 | 6 8 8 8 6 5 5 5 5 5 5 Most Carried 8 | 2 5 8 8 8 5 5 5 5 5 5 Average Carried 5 | . 3 7 8 5 4 5 5 5 4 4 Final Capacity 8 | 8 8 8 8 5 5 5 5 5 5 5 Final Carried 8 | 2 5 8 8 4 5 5 5 5 5 5 Scrap Suit Usage (%) 12 | . . . . . . . . . . 92 Class Distribution -------------------- 65% | Mutant 27% | Scavenger-Mutant 6% | Skirmisher Dominant Class ---------------- Mutant | -10/Materials Mutant | -10/Mines Mutant | -10/Exiles Scavenger-Mutant | -9/Mines Scavenger-Mutant | -8/Materials Scavenger-Mutant | -8/Storage Scavenger-Mutant | -8/Garrison Scavenger-Mutant | -7/Factory Mutant | -7/DSF Mutant | -6/Factory Resources | -11 -10 -10 -10 -9 -8 -8 -8 -7 -7 -6 ----------- Run | Yrd Mat Min Exi Min Mat Sto Gar Fac DSF Fac Matter Collected 734 | 120 61 154 86 74 145 10 20 . 7 57 Remotely . | . . . . . . . . . . . Salvage Created 1342 | . 61 168 145 123 618 56 171 . . . Parts 55 | . 4 6 2 4 27 3 9 . . . Haulers Intercepted 3 | . . . . . 3 . . . . . Recyclers Shooed . | . . . . . . . . . . . Parts Field Recycled . | . . . . . . . . . . . Retrieved Matter . | . . . . . . . . . . . Parts Self-Destructed . | . . . . . . . . . . . Prevented . | . . . . . . . . . . . Parts Restored . | . . . . . . . . . . . Kills | -11 -10 -10 -10 -9 -8 -8 -8 -7 -7 -6 ------- Run | Yrd Mat Min Exi Min Mat Sto Gar Fac DSF Fac Combat Hostiles Destroyed 21 | . 1 4 1 3 5 1 6 . . . Melee 15 | . . . . 3 5 1 6 . . . Guns 5 | . 1 3 1 . . . . . . . Classes Destroyed 10 | . 2 . . 2 6 . . . . . Worker 1 | . . . . . 1 . . . . . Builder 1 | . . . . . 1 . . . . . Hauler 3 | . . . . . 3 . . . . . Recycler 2 | . . . . 1 1 . . . . . Operator 1 | . 1 . . . . . . . . . Watcher 1 | . . . . . 1 . . . . . Swarmer 6 | . . . . 3 . . 3 . . . Grunt 10 | . 1 4 1 . 1 . 3 . . . Sentry 2 | . . . . . 2 . . . . . Hunter 3 | . . . . . 2 1 . . . . Best Kill Streak 4 | . 1 2 1 3 4 1 3 . . . Combat Bots Only 3 | . 1 2 1 2 2 1 3 . . . Max Kills in Single Turn 1 | . 1 1 1 1 1 1 1 . . . Gunslinging . | . . . . . . . . . . . Exploded . | . . . . . . . . . . . Melee 1 | . . . . 1 1 1 1 . . . Uniques/NPCs Destroyed . | . . . . . . . . . . . Combat | -11 -10 -10 -10 -9 -8 -8 -8 -7 -7 -6 -------- Run | Yrd Mat Min Exi Min Mat Sto Gar Fac DSF Fac Hostile Shots Fired 336 | . 5 44 . 32 39 6 14 . 64 132 Missed 114 | . 1 12 . 8 14 . 1 . 23 55 Hits 222 | . 4 32 . 24 25 6 13 . 41 77 Melee 1 | . . . . . . . . . . 1 Projectile 221 | . 4 32 . 24 25 6 13 . 41 76 AOE 6 | . . . . . . . . . . 6 Critical Strikes 9 | . . . . . . . . . 3 6 Damage Taken 4433 | . 42 432 . 208 379 100 113 . 1173 1986 Core 1455 | . 20 48 . 33 79 22 30 . 373 850 Absorbed by Shields . | . . . . . . . . . . . Redirected to Shielding 56 | . . . . 3 53 . . . . . Regen/Repaired (Parts) 33 | . . . . . 33 . . . . . Core Remaining (%) 70 | 100 . . . 59 . . 76 . 46 . Volleys Fired 42 | . 11 19 12 . . . . . . . Largest 2 | . 2 2 2 . . . . . . . Hottest 90 | . 90 90 83 . . . . . . . Shots Fired 83 | . 22 37 24 . . . . . . . Gun 71 | . 22 37 12 . . . . . . . Cannon 12 | . . . 12 . . . . . . . Launcher . | . . . . . . . . . . . Special . | . . . . . . . . . . . Kinetic 19 | . . 7 12 . . . . . . . Thermal 64 | . 22 30 12 . . . . . . . Explosive . | . . . . . . . . . . . Electromagnetic . | . . . . . . . . . . . Robot Hit Streak 11 | . 3 11 4 . . . . . . . Robot Miss Streak 3 | . 3 1 2 . . . . . . . Penetration Max . | . . . . . . . . . . . Secondary Targets . | . . . . . . . . . . . Shots Hit Robots 114 | . 11 28 21 8 34 3 9 . . . Core Hits 40 | . 4 8 9 3 9 1 6 . . . Critical Kills . | . . . . . . . . . . . Critical Parts Destroyed . | . . . . . . . . . . . Critical Strikes 12 | . . 2 3 . 7 . . . . . Burn 4 | . . 2 2 . . . . . . . Blast 1 | . . . 1 . . . . . . . Sever 7 | . . . . . 7 . . . . . Melee Attacks 76 | . . . 10 12 37 3 14 . . . Impact . | . . . . . . . . . . . Slashing 76 | . . . 10 12 37 3 14 . . . Piercing . | . . . . . . . . . . . Sneak Attacks 9 | . . . . 2 7 . . . . . Combat Hostiles . | . . . . . . . . . . . Follow-up Attacks 10 | . . . . . 6 1 3 . . . Damage Inflicted 4270 | . 108 347 980 436 1860 138 401 . . . Guns 539 | . 108 347 84 . . . . . . . Cannons 201 | . . . 201 . . . . . . . Explosions . | . . . . . . . . . . . Melee 3530 | . . . 695 436 1860 138 401 . . . Ramming . | . . . . . . . . . . . Kinetic 250 | . . 49 201 . . . . . . . Thermal 490 | . 108 298 84 . . . . . . . Explosive . | . . . . . . . . . . . Electromagnetic . | . . . . . . . . . . . Impact . | . . . . . . . . . . . Slashing 3530 | . . . 695 436 1860 138 401 . . . Piercing . | . . . . . . . . . . . Highest Corruption 2 | . . . . . . . . . . 2 Average Corruption 1 | . . . . . . . . . . 1 Corruption Purged . | . . . . . . . . . . . Corruption Blocked . | . . . . . . . . . . . Overload Shots . | . . . . . . . . . . . Overflow Damage 512 | . . . 244 87 177 4 . . . . Projectiles . | . . . . . . . . . . . Explosions . | . . . . . . . . . . . Melee 512 | . . . 244 87 177 4 . . . . Knockbacks 2 | . . . 2 . . . . . . . Impact . | . . . . . . . . . . . Kinetic 2 | . . . 2 . . . . . . . Secondary . | . . . . . . . . . . . Self-Inflicted Damage . | . . . . . . . . . . . Shots . | . . . . . . . . . . . Rammed . | . . . . . . . . . . . Targets Rammed . | . . . . . . . . . . . Kicked . | . . . . . . . . . . . Crushed . | . . . . . . . . . . . Highest Temperature 336 | . 60 336 . . . . . . . 20 Average Temperature 104 | . 27 183 . . . . . . . 20 Received Heat Transfer 582 | . 24 255 . . 63 . 18 . 18 204 Effects 1 | . . 1 . . . . . . . . Damage (minor) 1 | . . 1 . . . . . . . . Siege Activations . | . . . . . . . . . . . Martial Activations . | . . . . . . . . . . . Shielding Activations . | . . . . . . . . . . . Robots Disrupted . | . . . . . . . . . . . Combat Hostiles . | . . . . . . . . . . . Robots Corrupted . | . . . . . . . . . . . Combat Hostiles . | . . . . . . . . . . . Parts Fried . | . . . . . . . . . . . Impact Corruptions . | . . . . . . . . . . . Robots Melted 1 | . . 1 . . . . . . . . Combat Hostiles 1 | . . 1 . . . . . . . . Parts Melted 2 | . . 2 . . . . . . . . Heat Transferred 1595 | . 261 964 370 . . . . . . . Parts Sabotaged . | . . . . . . . . . . . Parts Stolen . | . . . . . . . . . . . Parts Stripped . | . . . . . . . . . . . Power Chain Reactions . | . . . . . . . . . . . Alert | -11 -10 -10 -10 -9 -8 -8 -8 -7 -7 -6 ------- Run | Yrd Mat Min Exi Min Mat Sto Gar Fac DSF Fac Maximum Alert Level 1 | . . . . . . . 1 . . . Low Security (%) 97 | 100 100 100 . 100 100 100 74 100 100 100 Level 1 2 | . . . . . . . 25 . . . Level 2 . | . . . . . . . . . . . Level 3 . | . . . . . . . . . . . Level 4 . | . . . . . . . . . . . Level 5 . | . . . . . . . . . . . High Security . | . . . . . . . . . . . Max Security . | . . . . . . . . . . . Peak Influence 286 | . 30 30 . 94 65 33 286 149 104 15 Initial 149 | . . . . . 20 18 21 149 104 . Average 26 | . 3 7 . 64 17 19 144 149 58 . Influence Increases 1029 | . 36 160 30 174 280 33 275 . . 41 Destroy 0b10 Robot/C 540 | . 20 80 20 140 140 20 120 . . . Destroy 0b10 Robot/NC 55 | . 5 . 10 5 35 . . . . . Destroy Leader 128 | . 10 20 . 20 58 10 10 . . . Allied During Kill 9 | . . . . 9 . . . . . . Successful Hack 46 | . . . . . 32 3 . . . 11 Anti-Garrison Action 100 | . . . . . . . 100 . . . Destroy Structure 1 | . 1 . . . . . . . . . Lose Combat Pursuer 150 | . . 60 . . 15 . 45 . . 30 Influence Decreases 1022 | . 36 160 30 120 288 46 22 137 149 34 Entered New Map 256 | . . . . . 34 28 12 137 45 . Time Decay 577 | . 36 150 30 100 224 10 . . . 27 Lost Part 169 | . . 10 . 20 10 8 10 . 104 7 Lost Ally 20 | . . . . . 20 . . . . . Squads Dispatched 9 | . 1 . . . 1 1 . . 1 5 Investigation 3 | . . . . . 1 1 . . . 1 Extermination . | . . . . . . . . . . . Reinforcement 4 | . 1 . . . . . . . 1 2 Assault 2 | . . . . . . . . . . 2 Garrison . | . . . . . . . . . . . Intercept . | . . . . . . . . . . . Searches Triggered . | . . . . . . . . . . . Construction Impeded . | . . . . . . . . . . . Haulers Reinforced . | . . . . . . . . . . . Active Scanning Responses . | . . . . . . . . . . . Cargo Convoy Interrupts . | . . . . . . . . . . . Stealth | -11 -10 -10 -10 -9 -8 -8 -8 -7 -7 -6 --------- Run | Yrd Mat Min Exi Min Mat Sto Gar Fac DSF Fac Distress Signals . | . . . . . . . . . . . Communications Jammed . | . . . . . . . . . . . Distress Signals . | . . . . . . . . . . . Times Spotted 56 | . 5 8 . 7 9 1 7 . 4 15 Peak Tracking Total 12 | . 2 2 . 4 3 1 3 . 4 12 Tactical Retreats 7 | . . 3 . . 1 . 1 . . 2 Traps | -11 -10 -10 -10 -9 -8 -8 -8 -7 -7 -6 ------- Run | Yrd Mat Min Exi Min Mat Sto Gar Fac DSF Fac Traps Triggered 4 | . . . . . 1 1 1 . 1 . Indirectly . | . . . . . . . . . . . Trap Hack Attempts . | . . . . . . . . . . . Triggered . | . . . . . . . . . . . Disarmed . | . . . . . . . . . . . Reprogrammed . | . . . . . . . . . . . Reused . | . . . . . . . . . . . Traps Extracted . | . . . . . . . . . . . Installed . | . . . . . . . . . . . Triggered . | . . . . . . . . . . . Machines | -11 -10 -10 -10 -9 -8 -8 -8 -7 -7 -6 ---------- Run | Yrd Mat Min Exi Min Mat Sto Gar Fac DSF Fac Machines Disabled 1 | . . . . . . . 1 . . . Max in Single Turn 1 | . . . . . . . 1 . . . Garrison Access 1 | . . . . . . . . . . 1 Garrison Relay 1 | . . . . . . . 1 . . . Machines Repaired . | . . . . . . . . . . . Machines Dismantled . | . . . . . . . . . . . Machines Sabotaged . | . . . . . . . . . . . Overloaded Fab Kills . | . . . . . . . . . . . Hacking | -11 -10 -10 -10 -9 -8 -8 -8 -7 -7 -6 --------- Run | Yrd Mat Min Exi Min Mat Sto Gar Fac DSF Fac Machines Accessed 20 | . 2 . 5 . 7 1 1 1 . 3 Terminals 10 | . 1 . . . 4 . 1 1 . 3 Fabricators . | . . . . . . . . . . . Repair Stations 1 | . . . . . 1 . . . . . Recycling Units 2 | . 1 . . . 1 . . . . . Scanalyzers 1 | . . . . . 1 . . . . . Garrison Access 1 | . . . . . . 1 . . . . Total Hacks 63 | . 5 . 30 . 16 3 3 1 . 5 Successful 49 | . 2 . 30 . 11 3 . 1 . 2 Failed 14 | . 3 . . . 5 . 3 . . 3 Catastrophic 5 | . 2 . . . 2 . . . . 1 Database Lockouts . | . . . . . . . . . . . Manual 18 | . 6 . 1 . 7 . 3 . . 1 Terminals 20 | . 1 . . . 10 . 3 1 . 5 Fabricators . | . . . . . . . . . . . Repair Stations 2 | . . . . . 2 . . . . . Recycling Units 6 | . 4 . . . 2 . . . . . Scanalyzers 2 | . . . . . 2 . . . . . Garrison Access 3 | . . . . . . 3 . . . . Terminal Hacks 37 | . . . 30 . 4 . . 1 . 2 Record 29 | . . . 29 . . . . . . . Open DSF 2 | . . . . . . . . 1 . 1 Branch Access Points 1 | . . . . . 1 . . . . . Recycling Unit Index 1 | . . . . . . . . . . 1 Hauler Manifests 1 | . . . . . 1 . . . . . Registered Components 1 | . . . . . 1 . . . . . Zone Layout 1 | . . . . . 1 . . . . . Proto ID Catalog 1 | . . . 1 . . . . . . . Fabricator Hacks . | . . . . . . . . . . . Repair Station Hacks 2 | . . . . . 2 . . . . . Scan Component 1 | . . . . . 1 . . . . . Repair 1 | . . . . . 1 . . . . . Recycling Unit Hacks 3 | . 1 . . . 2 . . . . . Report Inventory 2 | . 1 . . . 1 . . . . . Retrieve Components 1 | . . . . . 1 . . . . . Scanalyzer 2 | . . . . . 2 . . . . . Retrieve Study 2 | . . . . . 2 . . . . . Garrison Access Hacks 3 | . . . . . . 3 . . . . Unlock Access 1 | . . . . . . 1 . . . . Coupler Status 2 | . . . . . . 2 . . . . Unauthorized Hacks 2 | . 1 . . . 1 . . . . . Terminals 1 | . . . . . 1 . . . . . Botnet 1 | . . . . . 1 . . . . . Fabricators . | . . . . . . . . . . . Repair Stations . | . . . . . . . . . . . Recycling Units 1 | . 1 . . . . . . . . . Recyclers 1 | . 1 . . . . . . . . . Scanalyzers . | . . . . . . . . . . . Garrison Access . | . . . . . . . . . . . Data Cores Recovered . | . . . . . . . . . . . Used . | . . . . . . . . . . . Hacking Detections 12 | . 2 . . . 5 1 1 1 . 2 Full Trace Events 2 | . . . . . . . 1 . . 1 Feedback Events . | . . . . . . . . . . . Feedback Blocked . | . . . . . . . . . . . Robot Schematics Acquired . | . . . . . . . . . . . Robots Built . | . . . . . . . . . . . Authchips . | . . . . . . . . . . . Time . | . . . . . . . . . . . Total Robot Build Rating . | . . . . . . . . . . . Part Schematics Acquired . | . . . . . . . . . . . Parts Built . | . . . . . . . . . . . Authchips . | . . . . . . . . . . . Time . | . . . . . . . . . . . Total Part Build Rating . | . . . . . . . . . . . Part Studies Acquired 2 | . . . . . 2 . . . . . Parts Repaired 1 | . . . . . 1 . . . . . Time 13 | . . . . . 13 . . . . . Parts Recycled . | . . . . . . . . . . . Recycled Matter . | . . . . . . . . . . . Retrieved Matter . | . . . . . . . . . . . Retrieved Components 3 | . . . . . 3 . . . . . Parts Scanalyzed . | . . . . . . . . . . . Part Schematics Acquired . | . . . . . . . . . . . Parts Damaged . | . . . . . . . . . . . Bothacking | -11 -10 -10 -10 -9 -8 -8 -8 -7 -7 -6 ------------ Run | Yrd Mat Min Exi Min Mat Sto Gar Fac DSF Fac Used RIF Installer 1 | . . . . . . . 1 . . . Robots Hacked . | . . . . . . . . . . . Non-combat . | . . . . . . . . . . . Combat . | . . . . . . . . . . . Robot Hacks Applied . | . . . . . . . . . . . Relay Couplers Released 6 | . . . . . . . 3 . . 3 Machine Destruction 6 | . . . . . . . 3 . . 3 Fabnet Peak Effective % . | . . . . . . . . . . . Robots Rewired 2 | . . . 2 . . . . . . . Allies Hacked . | . . . . . . . . . . . Hacks Repelled . | . . . . . . . . . . . Allies | -11 -10 -10 -10 -9 -8 -8 -8 -7 -7 -6 -------- Run | Yrd Mat Min Exi Min Mat Sto Gar Fac DSF Fac Total Allies 2 | . . . 2 . . . . . . . Largest Group 2 | . . . 2 2 1 . . . . . Highest-Rated Group 29 | . . . 29 29 21 . . . . . Highest-Rated Ally 21 | . . . 21 21 21 . . . . . Total Orders 1 | . . . . . 1 . . . . . STAY 1 | . . . . . 1 . . . . . Ally Attacks 16 | . . . . 8 8 . . . . . Total Damage 390 | . . . . 207 183 . . . . . Kills 7 | . . . . 5 2 . . . . . Allies Corrupted . | . . . . . . . . . . . Allies Melted . | . . . . . . . . . . . Intel | -11 -10 -10 -10 -9 -8 -8 -8 -7 -7 -6 ------- Run | Yrd Mat Min Exi Min Mat Sto Gar Fac DSF Fac Active Infowar (turns) 1605 | . 266 203 . . 522 34 230 5 50 295 Optics 841 | . . . . . 522 34 230 5 50 . Sensors 764 | . 266 203 . . . . . . . 295 IFF 283 | . . . . . . . . . . 283 Robot Analysis Total . | . . . . . . . . . . . Derelict Logs Recovered 1 | . . 1 . . . . . . . . Drone Launches . | . . . . . . . . . . . Drone Recoveries . | . . . . . . . . . . . Exploration | -11 -10 -10 -10 -9 -8 -8 -8 -7 -7 -6 ------------- Run | Yrd Mat Min Exi Min Mat Sto Gar Fac DSF Fac Turns Passed 3871 | 62 282 625 1154 205 625 34 230 5 107 542 Spaces Moved 2923 | 45 195 451 901 156 461 26 178 5 87 418 Core 29 | 5 . . . . . . . . 19 5 Treads . | . . . . . . . . . . . Legs 2782 | 40 195 451 901 110 461 26 178 5 68 347 Wheels . | . . . . . . . . . . . Hover . | . . . . . . . . . . . Flight 112 | . . . . 46 . . . . . 66 Fastest Speed 35 | 50 120 120 120 37 105 112 112 112 50 35 Average Speed 117 | 114 120 120 120 105 109 112 113 112 109 122 Slowest Speed 200 | 120 120 190 120 190 120 116 120 112 200 140 Overloaded Moves . | . . . . . . . . . . . Propulsion Burnouts . | . . . . . . . . . . . Robots Hopped 2 | . . . . . . . . . . 2 Potential Cave-ins . | . . . . . . . . . . . Cave-ins Triggered . | . . . . . . . . . . . Exploration Rate (%) 41 | 4 29 75 92 26 44 11 33 . 89 12 Regions Visited 10 Branch Regions 4 Pre-discovered Areas 2 | . . . 1 1 . . . . . . Known Exits Taken 3 | . . . . . 1 1 . 1 . . Unknown Exits Taken 5 | 1 1 1 1 1 . . . . . . Scrap Searched 1 | . . 1 . . . . . . . . Spaces Dug . | . . . . . . . . . . . Terrain Destroyed 1 | . . . 1 . . . . . . . Melee . | . . . . . . . . . . . Projectile 1 | . . . 1 . . . . . . . AOE . | . . . . . . . . . . . Terrain Rammed . | . . . . . . . . . . . Walls Destroyed . | . . . . . . . . . . . Machines Disabled . | . . . . . . . . . . . Actions | -11 -10 -10 -10 -9 -8 -8 -8 -7 -7 -6 --------- Run | Yrd Mat Min Exi Min Mat Sto Gar Fac DSF Fac Total 3215 | 53 220 494 941 188 552 28 195 4 97 443 Wait 86 | . 11 13 . 2 39 . 5 . . 16 Move 2909 | 44 194 450 900 155 460 25 177 4 86 414 Hop 2 | . . . . . . . . . . 2 Pick Up 17 | 3 3 3 . 2 2 . . . 1 3 Fast Attach 39 | 5 1 2 2 4 10 1 2 . 7 5 Attach 9 | 1 . 2 . 2 2 . . . . 2 Detach 2 | . . . . 1 1 . . . . . Swap 8 | . . 3 . 1 3 . . . . 1 Drop 23 | . . 2 2 9 6 . 1 . 3 . Fire 42 | . 11 19 12 . . . . . . . Melee 62 | . . . 9 12 29 2 10 . . . Ram . | . . . . . . . . . . . Kick . | . . . . . . . . . . . Crush . | . . . . . . . . . . . Escape Stasis . | . . . . . . . . . . . Rewire 16 | . . . 16 . . . . . . . Trap . | . . . . . . . . . . . Miscellaneous . | . . . . . . . . . . . Route ------- -11/Scrapyard -10/Materials -10/Mines (discovered 2 exits: [*Mat] / *Exi) -10/Exiles -9/Mines -8/Materials (discovered 2 exits: *Fac / *Sto) -8/Storage -8/Garrison -7/Factory -7/DSF -6/Factory History --------- Turn | Location | Event 8 | -11/Scrapyard | Discovered new exit (range 15) 63 | -11/Scrapyard | Entered Materials 281 | -10/Materials | Discovered new exit (range 15) 309 | -10/Materials | Build established: Mutant 345 | -10/Materials | Entered Mines 408 | -10/Mines | Learned Materials emergency access door positions 470 | -10/Mines | Found a Scrap Suit stashed away for nefarious purposes 472 | -10/Mines | Found Scrap Suit 690 | -10/Mines | Discovered new exit (range 15) 915 | -10/Mines | A weapon hastily lodged in a ceiling crevice suddenly fell to the ground 964 | -10/Mines | Deemed a non-threat by the Exiles lab entrance 964 | -10/Mines | Discovered new exit (range 5) 970 | -10/Mines | Entered Exiles 970 | -10/Exiles | Found Exiles lab destroyed 1357 | -10/Exiles | Opened EX-Vault 1363 | -10/Exiles | Found Longsword +1 1473 | -10/Exiles | Learned location of Zion (-7) 2092 | -10/Exiles | Discovered new exit (range 14) 2124 | -10/Exiles | Entered Mines 2124 | -9/Mines | Accompanied by 2 allies 2193 | -9/Mines | Met a Derelict bent on vengeance 2288 | -9/Mines | Learned location of Storage (-8) 2324 | -9/Mines | Discovered new exit (range 3) 2329 | -9/Mines | Entered Materials 2329 | -8/Materials | Accompanied by 1 ally 2329 | -8/Materials | Evolved 4 slots: Propulsion x2, Utility x2 2539 | -8/Materials | Identified exit to Storage 2558 | -8/Materials | Build established: Scavenger-Mutant 2653 | -8/Materials | Repaired Propulsion Shielding 2815 | -8/Materials | Discovered new exit (range 14) 2954 | -8/Materials | Entered Storage 2982 | -8/Storage | Identified exit to Garrison 2988 | -8/Storage | Entered Garrison 3015 | -8/Garrison | Installed Relay Interface Framework 3036 | -8/Garrison | Triggered checkpoint 3050 | -8/Garrison | Garrison Relay disabled 3142 | -8/Garrison | Triggered checkpoint 3186 | -8/Garrison | Discovered new exit (range 10) 3218 | -8/Garrison | Entered Factory 3218 | -7/Factory | Evolved 2 slots: Utility x1, Weapon x1 3223 | -7/Factory | Identified exit to DSF 3223 | -7/Factory | Entered DSF 3272 | -7/DSF | Additional patrols routed to DSF 3305 | -7/DSF | Discovered new exit (range 14) 3327 | -7/DSF | Core integrity fell below 50% 3330 | -7/DSF | Entered Factory 3330 | -6/Factory | Evolved 2 slots: Utility x1, Weapon x1 3335 | -6/Factory | Lost 12 parts (4n6u2w) 3761 | -6/Factory | Spotted B-75 Beast 3809 | -6/Factory | Lost 3 parts (2u1w) 3831 | -6/Factory | Released all parts (7) 3864 | -6/Factory | Core integrity fell below 50% 3869 | -6/Factory | Core integrity fell below 20% 3872 | -6/Factory | Destroyed by X-67 Chaingunner with Heavy Machine Gun Last Messages --------------- 03828_ K-01 Serf collects debris. 03830_ Fission Core destroyed. 03831_ Released Hvy. Machine Gun. 03831_ Released Scrap Suit. 03831_ Released Lgt. Armored Exoskeleton. 03831_ Released Authchip [Weapon]. 03831_ Released Authchip [Propulsion]. 03831_ Released Lgt. Armored Exoskeleton. 03831_ Acquired Cesium-ion Thruster. 03832_ ALERT: Hostiles spotted, dispatching reinforcements to Terminal F004. 03832_ K-01 Serf collects debris. 03832_ K-01 Serf cleans the Matter Pump. 03835_ K-01 Serf collects debris. 03838_ K-01 Serf cleans the Matter Pump. 03845_ Door malfunctions. 03859_ Cesium-ion Thruster destroyed. 03860_ Slug penetrates G-50 Soldier. 03860_ Penetrated by Slug. 03862_ Critical hit (Burn: +37). Map ----- +----------------------------------------------------+ | ???????????# #?????????????? | | ???????????# #?????????????? | | ???????????+ #?????????????? | | ???????????# #?????????????? | | ???????????# """ """ """ #?????????????? | | ???????????# """ """ """ #########?????? | | ???????????# %"" """ """ # #?????? | | ???????????#^ # #?????? | | ???????????# """ """ """ # [ #?????? | | ???????????# """ """ """ # #?????? | | ???????????# """ """ """ # """" #?????? | | ???????????# / """" #?????? | | ???????????# R # """" ??????? | | ???????????# # """" ??????? | | ???????????# #### ## """"???????? | | ???????????#### #??# ## """"???????? | | ??????????????#R h #??# ## ???????? | | ?????########## #??# #########??????? | | ?????# # gb #??# #??????????????? | | ?????# # gg##+####+##?????????????? | | ?????# # # #?????????????? | | ?????# # # #?????????????? | | ?????# + p ; #?????????????? | | ?????# #xx # #?????????????? | | ?????# # # #?????????????? | | ?????# # @# #?????????????? | | ?????# # # #?????????????? | | ?????########## # #?????????????? | | ??????????????# # #?????????????? | | ??????????????# ##########?????????????? | | ??????????????# #??????????????????????? | | ??????????????# #??????????????????????? | | ??????????????+ +??????????????????????? | | ??????????????# #??????????????????????? | | ??????????????# g #??????????????????????? | | ??????????????## ##??????????????????????? | | ???????????????# ????????????????????????? | | ???????????????# ????????????????????????? | | ????????????????g????????????????????????? | | ???????????????? ????????????????????????? | | ???????????????? ????????????????????????? | | ?????????????????????????????????????????? | | ?????????????????????????????????????????? | | ?????????????????????????????????????????? | | ?????????????????????????????????????????? | | ?????????????????????????????????????????? | | ?????????????????????????????????????????? | | ?????????????????????????????????????????? | | ?????????????????????????????????????????? | | ?????????????????????????????????????????? | +----------------------------------------------------+ Best States ------------- Heat Dissipation 48 Energy Generation 18 Energy Capacity 310 Matter Stores 300 Matter Capacity 300 Sight Range 18 Robot Scan Range 16 Terrain Scan Density 10 Armor Coverage 150 Resistance: EM 15 Propulsion Shielding 33 Evasion (%) 63 Offensive Hacking 10 Authchip Count 3 Item Schematics ----------------- None Robot Schematics ------------------ None Fabricated ------------ Nothing Repaired ---------- Propulsion Shielding | 34% | -8/Materials Studied --------- Flight Unit | -8/Materials | Hacked Aluminum Leg | -8/Materials | Hacked Alien Tech Used ----------------- None Achievements -------------- Luggage Code Challenges ------------ None Game ------ Seed StormPiercingGreatsword Manual? 0 Play Time 00:42:18 Cumulative 42.7 hours Start 2025.12.03 @ 15:24:36 End 2025.12.07 @ 14:58:47 Sessions 3 Manual Loads 0 Difficulty Rogue Special Mode None Game No. 44 Rogue 44 Adventurer 0 Explorer 0 Win Type - Total 0 Types 0/0/0/0/0/0/0/0/0/0 Lore% 18 Gallery% 37 Achievement% 26 Wizard Run 0 Options --------- Layout 1 ASCII 0 Keyboard 0 Movement Mouse Keybinds 0 Fullscreen 1 Font 24/Smallcaps Map View 50x35 Zoom Use 0% Tactical HUD 1 Map Filters NONE Filters NONE Steam 1 RUN: 48edf1dc-9445-4fdf-90ad-ba5d75ea6f01